fUST/lending_fUST_20241022
["ID","MTS","AMOUNT","RATE_DAILY","PERIOD"]
[340655306,1729607445599,-553.87498595,0.00016438,2]
[340655307,1729607445610,-614.368358,0.00016438,2]
[340655308,1729607445620,-614.368358,0.00016438,2]
[340655309,1729607445630,-614.368358,0.00016438,2]
[340655310,1729607445640,-614.368358,0.00016438,2]
[340655311,1729607445650,-500.0,0.00016438,2]
[340655312,1729607445660,-614.368358,0.00016438,2]
[340655313,1729607445672,-614.368358,0.00016438,2]
[340655314,1729607445681,-614.368358,0.00016438,2]
[340655315,1729607445691,-505.68,0.00016438,2]
[340655316,1729607445702,-151.0,0.00016438,2]
[340655317,1729607445713,-151.0,0.00016438,2]
[340655318,1729607445723,-151.0,0.00016438,2]
[340655319,1729607445734,-151.0,0.00016438,2]
[340655320,1729607445745,-500.9298225,0.00016438,2]
[340655321,1729607445755,-501.71768196,0.00016438,2]
[340655322,1729607445766,-500.0,0.00016438,2]
[340655323,1729607445777,-501.02101976,0.00016438,2]
[340655324,1729607445787,-500.0,0.00016438,2]
[340655325,1729607445798,-500.0,0.00016438,2]
[340655326,1729607445808,-624.58,0.00016438,2]
[340655327,1729607445819,-569.29620012,0.00016438,2]
[340655328,1729607445829,-478.65851777,0.00016438,2]
[340655329,1729607445840,-500.44001316,0.00016438,2]
[340655330,1729607445850,-500.0,0.00016438,2]
[340655331,1729607445863,-501.88149445,0.00016438,2]
[340655332,1729607445875,-500.0,0.00016438,2]
[340655333,1729607445885,-500.0,0.00016438,2]
[340655334,1729607445895,-500.0,0.00016438,2]
[340655335,1729607445906,-500.0,0.00016438,2]
[340655336,1729607445916,-500.32749254,0.00016438,2]
[340655337,1729607445926,-280.619833,0.00016438,2]
[340655338,1729607445938,-280.619833,0.00016438,2]
[340655339,1729607445948,-280.619833,0.00016438,2]
[340655340,1729607445959,-280.619833,0.00016438,2]
[340655341,1729607445969,-200.0,0.00016438,2]
[340655342,1729607445979,-280.619833,0.00016438,2]
[340655343,1729607445989,-280.619833,0.00016438,2]
[340655344,1729607445998,-280.619833,0.00016438,2]
[340655345,1729607446009,-280.619832,0.00016438,2]
[340655346,1729607446022,-500.0,0.00016438,2]
[340655347,1729607446033,-169.0750239,0.00016438,2]
[340655348,1729607446043,-162.029252,0.00016438,2]
[340655349,1729607446054,-162.029252,0.00016438,2]
[340655350,1729607446064,-162.029252,0.00016438,2]
[340655351,1729607446074,-162.029252,0.00016438,2]
[340655352,1729607446084,-500.0,0.00016438,2]
[340655353,1729607446094,-162.029252,0.00016438,2]
[340655354,1729607446104,-162.029252,0.00016438,2]
[340655355,1729607446114,-162.029252,0.00016438,2]
[340655356,1729607446124,-162.029261,0.00016438,2]
[340655357,1729607446134,-500.0,0.00016438,2]
[340655358,1729607446144,-546.62,0.00016438,2]
[340655359,1729607446154,-500.0,0.00016438,2]
[340655361,1729607446164,-500.0,0.00016438,2]
[340655362,1729607446174,-504.79050931,0.00016438,2]
[340655363,1729607446183,-500.0,0.00016438,2]
[340655364,1729607446194,-2611.14782,0.00016438,2]
[340655365,1729607446204,-2611.14782,0.00016438,2]
[340655366,1729607446214,-2611.14782,0.00016438,2]
[340655367,1729607446225,-500.0,0.00016438,2]
[340655368,1729607446236,-2611.14782,0.00016438,2]
[340655369,1729607446246,-2611.14782,0.00016438,2]
[340655370,1729607446255,-2611.14782,0.00016438,2]
[340655371,1729607446265,-2611.14782,0.00016438,2]
[340655372,1729607446283,-2611.14781005,0.00016438,2]
[340655373,1729607446297,-500.0,0.00016438,2]
[340655374,1729607446306,-500.0,0.00016438,2]
[340655375,1729607446316,-500.0,0.00016438,2]
[340655376,1729607446326,-2165.894833,0.00016438,2]
[340655377,1729607446338,-2165.894833,0.00016438,2]
[340655378,1729607446348,-2165.894833,0.00016438,2]
[340655379,1729607446358,-2165.894833,0.00016438,2]
[340655381,1729607446370,-2165.894833,0.00016438,2]
[340655383,1729607446381,-2165.894833,0.00016438,2]
[340655385,1729607446391,-2165.894833,0.00016438,2]
[340655386,1729607446401,-2165.894825,0.00016438,2]
[340655388,1729607446412,-549.72,0.00016438,2]
[340655390,1729607446422,-500.0,0.00016438,2]
[340655392,1729607446432,-500.0,0.00016438,2]
[340655393,1729607446443,-500.0,0.00016438,2]
[340655394,1729607446452,-500.0,0.00016438,2]
[340655395,1729607446462,-522.82,0.00016438,2]
[340655396,1729607446473,-500.32988118,0.00016438,2]
[340655397,1729607446483,-502.83486527,0.00016438,2]
[340655398,1729607446493,-500.0,0.00016438,2]
[340655400,1729607446503,-151.0,0.00016438,2]
[340655402,1729607446512,-151.0,0.00016438,2]
[340655403,1729607446525,-501.76169157,0.00016438,2]
[340655404,1729607446535,-151.0,0.00016438,2]
[340655405,1729607446546,-151.0,0.00016438,2]
[340655406,1729607446556,-501.19692512,0.00016438,2]
[340655407,1729607446566,-501.25363604,0.00016438,2]
[340655408,1729607446576,-500.0,0.00016438,2]
[340655409,1729607446586,-500.0,0.00016438,2]
[340655410,1729607446596,-500.0,0.00016438,2]
[340655411,1729607446606,-500.0,0.00016438,2]
[340655413,1729607446616,-500.0,0.00016438,2]
[340655414,1729607446626,-500.0,0.00016438,2]
[340655415,1729607446636,-502.64026313,0.00016438,2]
[340655416,1729607446646,-479.87302252,0.00016438,2]
[340655417,1729607446656,-500.0,0.00016438,2]
[340655418,1729607446666,-151.0,0.00016438,2]
[340655419,1729607446677,-151.0,0.00016438,2]
[340655420,1729607446686,-151.0,0.00016438,2]
[340655421,1729607446697,-225.623421,0.00016438,2]
[340655422,1729607446707,-503.27197622,0.00016438,2]
[340655423,1729607446717,-501.62109286,0.00016438,2]
[340655424,1729607446727,-578.53,0.00016438,2]
[340655426,1729607446738,-508.0145817,0.00016438,2]
[340655427,1729607446748,-505.98180425,0.00016438,2]
[340655429,1729607446759,-500.0,0.00016438,2]
[340655431,1729607446771,-506.07058054,0.00016438,2]
[340655433,1729607446781,-502.80525771,0.00016438,2]
[340655434,1729607446790,-504.70480448,0.00016438,2]
[340655435,1729607446800,-500.0,0.00016438,2]
[340655436,1729607446811,-502.45158765,0.00016438,2]
[340655437,1729607446821,-500.0,0.00016438,2]
[340655438,1729607446834,-502.85536475,0.00016438,2]
[340655439,1729607446845,-301.66839377,0.00016438,2]
[340655440,1729607446855,-500.0,0.00016438,2]
[340655441,1729607446866,-795.47,0.00016438,2]
[340655442,1729607446877,-501.87218093,0.00016438,2]
[340655443,1729607446886,-551.66,0.00016438,2]
[340655444,1729607446896,-500.0,0.00016438,2]
[340655445,1729607446905,-207.299631,0.00016438,2]
[340655446,1729607446915,-207.299631,0.00016438,2]
[340655447,1729607446924,-207.299631,0.00016438,2]
[340655448,1729607446934,-207.299631,0.00016438,2]
[340655449,1729607446944,-500.45382119,0.00016438,2]
[340655450,1729607446954,-503.67878093,0.00016438,2]
[340655451,1729607446964,-207.299631,0.00016438,2]
[340655452,1729607446975,-207.299631,0.00016438,2]
[340655453,1729607446984,-207.299631,0.00016438,2]
[340655454,1729607446994,-207.299627,0.00016438,2]
[340655455,1729607447003,-501.35882796,0.00016438,2]
[340655456,1729607447013,-501.73067683,0.00016438,2]
[340655457,1729607447026,-250.0,0.00016438,2]
[340655458,1729607447036,-502.24598283,0.00016438,2]
[340655459,1729607447046,-503.61002184,0.00016438,2]
[340655460,1729607447056,-504.51968974,0.00016438,2]
[340655461,1729607447065,-713.81,0.00016438,2]
[340655462,1729607447075,-507.49514747,0.00016438,2]
[340655463,1729607447086,-502.9072766,0.00016438,2]
[340655464,1729607447096,-268.850082,0.00016438,2]
[340655465,1729607447106,-501.43803928,0.00016438,2]
[340655466,1729607447117,-507.33398668,0.00016438,2]
[340655467,1729607447128,-268.850088,0.00016438,2]
[340655468,1729607447140,-749.34,0.00016438,2]
[340655469,1729607447151,-151.0,0.00016438,2]
[340655470,1729607447160,-536.79657146,0.00016438,2]
[340655471,1729607447170,-500.0,0.00016438,2]
[340655472,1729607447181,-151.0,0.00016438,2]
[340655473,1729607447191,-500.0,0.00016438,2]
[340655474,1729607447200,-282.7643366,0.00016438,2]
[340655475,1729607447212,-500.98596645,0.00016438,2]
[340655476,1729607447222,-505.86260419,0.00016438,2]
[340655477,1729607447231,-500.0,0.00016438,2]
[340655478,1729607447241,-626.98,0.00016438,2]
[340655479,1729607447250,-502.39193774,0.00016438,2]
[340655480,1729607447260,-500.0,0.00016438,2]
[340655481,1729607447273,-500.39412007,0.00016438,2]
[340655482,1729607447284,-502.92176556,0.00016438,2]
[340655483,1729607447297,-502.2508684,0.00016438,2]
[340655484,1729607447307,-1265.04,0.00016438,2]
[340655485,1729607447317,-500.0,0.00016438,2]
[340655486,1729607447327,-280.281986,0.00016438,2]
[340655487,1729607447339,-665.58,0.00016438,2]
[340655488,1729607447351,-516.71,0.00016438,2]
[340655489,1729607447509,-280.281986,0.00016438,2]
[340655490,1729607447539,-507.30702038,0.00016438,2]
[340655491,1729607447549,-151.0,0.00016438,2]
[340655492,1729607447559,-528.87539122,0.00016438,2]
[340655493,1729607447570,-614.3,0.00016438,2]
[340655494,1729607447579,-500.0,0.00016438,2]
[340655495,1729607447589,-500.46673032,0.00016438,2]
[340655496,1729607447599,-409.00054354,0.00016438,2]
[340655497,1729607447609,-500.0,0.00016438,2]
[340655498,1729607447619,-500.0,0.00016438,2]
[340655499,1729607447629,-500.0,0.00016438,2]
[340655500,1729607447639,-530.55,0.00016438,2]
[340655501,1729607447648,-502.20645901,0.00016438,2]
[340655502,1729607447658,-506.35071455,0.00016438,2]
[340655503,1729607447668,-1032.21,0.00016438,2]
[340655504,1729607447678,-500.0,0.00016438,2]
[340655505,1729607447688,-500.90067051,0.00016438,2]
[340655506,1729607447698,-503.3827418,0.00016438,2]
[340655507,1729607447708,-500.0,0.00016438,2]
[340655508,1729607447718,-2198.283094,0.00016438,2]
[340655509,1729607447727,-500.0,0.00016438,2]
[340655510,1729607447737,-500.0,0.00016438,2]
[340655511,1729607447747,-567.85494646,0.00016438,2]
[340655512,1729607447757,-2198.283098,0.00016438,2]
[340655513,1729607447767,-500.0,0.00016438,2]
[340655514,1729607447777,-501.28106047,0.00016438,2]
[340655515,1729607447787,-501.860412,0.00016438,2]
[340655516,1729607447797,-500.0,0.00016438,2]
[340655517,1729607447807,-624.21,0.00016438,2]
[340655518,1729607447817,-500.0,0.00016438,2]
[340655519,1729607447827,-504.28447236,0.00016438,2]
[340655520,1729607447836,-582.19,0.00016438,2]
[340655521,1729607447846,-167.386446,0.00016438,2]
[340655522,1729607447857,-1000.0,0.00016438,2]
[340655523,1729607447867,-517.07494843,0.00016438,2]
[340655524,1729607447877,-167.386449,0.00016438,2]
[340655525,1729607447886,-501.8646761,0.00016438,2]
[340655526,1729607447896,-507.14812062,0.00016438,2]
[340655527,1729607447906,-502.51891853,0.00016438,2]
[340655528,1729607447915,-501.77857544,0.00016438,2]
[340655529,1729607447925,-687.75,0.00016438,2]
[340655530,1729607447935,-500.0,0.00016438,2]
[340655531,1729607447944,-567.91,0.00016438,2]
[340655532,1729607447954,-509.69210023,0.00016438,2]
[340655533,1729607447963,-504.18483072,0.00016438,2]
[340655534,1729607447973,-501.62862238,0.00016438,2]
[340655535,1729607447983,-501.96890681,0.00016438,2]
[340655536,1729607447993,-502.459252,0.00016438,2]
[340655537,1729607448004,-500.0,0.00016438,2]
[340655538,1729607448014,-500.0,0.00016438,2]
[340655539,1729607448025,-500.0,0.00016438,2]
[340655540,1729607448035,-500.0,0.00016438,2]
[340655541,1729607448044,-502.76034305,0.00016438,2]
[340655542,1729607448054,-500.0,0.00016438,2]
[340655543,1729607448064,-503.39470722,0.00016438,2]
[340655544,1729607448074,-511.04975835,0.00016438,2]
[340655545,1729607448084,-500.0,0.00016438,2]
[340655546,1729607448094,-502.02802069,0.00016438,2]
[340655547,1729607448104,-539.14,0.00016438,2]
[340655548,1729607448113,-501.84509629,0.00016438,2]
[340655549,1729607448123,-501.77308922,0.00016438,2]
[340655550,1729607448133,-502.66594284,0.00016438,2]
[340655551,1729607448142,-508.78705762,0.00016438,2]
[340655552,1729607448155,-577.41,0.00016438,2]
[340655553,1729607448166,-500.34850981,0.00016438,2]
[340655554,1729607448176,-500.0,0.00016438,2]
[340655555,1729607448186,-508.42730088,0.00016438,2]
[340655556,1729607448197,-502.22416298,0.00016438,2]
[340655557,1729607448207,-500.0,0.00016438,2]
[340655558,1729607448217,-503.95285105,0.00016438,2]
[340655559,1729607448227,-500.0,0.00016438,2]
[340655560,1729607448238,-500.65555299,0.00016438,2]
[340655561,1729607448248,-505.84819234,0.00016438,2]
[340655562,1729607448257,-500.0,0.00016438,2]
[340655563,1729607448268,-500.0,0.00016438,2]
[340655564,1729607448277,-500.0,0.00016438,2]
[340655565,1729607448290,-500.0,0.00016438,2]
[340655566,1729607448300,-500.0,0.00016438,2]
[340655567,1729607448311,-501.03656369,0.00016438,2]
[340655568,1729607448321,-517.27386785,0.00016438,2]
[340655569,1729607448331,-500.0,0.00016438,2]
[340655570,1729607448340,-500.76709012,0.00016438,2]
[340655571,1729607448350,-507.75897318,0.00016438,2]
[340655572,1729607448360,-502.58686842,0.00016438,2]
[340655573,1729607448370,-503.62001843,0.00016438,2]
[340655574,1729607448381,-504.17294063,0.00016438,2]
[340655575,1729607448390,-500.0,0.00016438,2]
[340655576,1729607448400,-500.0,0.00016438,2]
[340655577,1729607448409,-500.0,0.00016438,2]
[340655578,1729607448419,-500.0,0.00016438,2]
[340655579,1729607448429,-501.11187807,0.00016438,2]
[340655580,1729607448439,-762.21,0.00016438,2]
[340655581,1729607448449,-502.64477077,0.00016438,2]
[340655582,1729607448459,-501.28502327,0.00016438,2]
[340655583,1729607448469,-500.0,0.00016438,2]
[340655584,1729607448479,-502.39805015,0.00016438,2]
[340655585,1729607448490,-297.29549371,0.00016438,2]
[340655586,1729607448501,-500.0,0.00016438,2]
[340655587,1729607448511,-501.04603239,0.00016438,2]
[340655588,1729607448523,-513.4810193,0.00016438,2]
[340655589,1729607448534,-501.11646806,0.00016438,2]
[340655590,1729607448543,-503.47083821,0.00016438,2]
[340655591,1729607448554,-502.69448949,0.00016438,2]
[340655592,1729607448563,-1020.25,0.00016438,2]
[340655593,1729607448574,-500.0,0.00016438,2]
[340655594,1729607448584,-500.0,0.00016438,2]
[340655595,1729607448595,-501.7010638,0.00016438,2]
[340655596,1729607448605,-500.0,0.00016438,2]
[340655597,1729607448615,-500.0,0.00016438,2]
[340655598,1729607448625,-500.51546112,0.00016438,2]
[340655599,1729607448634,-500.0,0.00016438,2]
[340655600,1729607448644,-501.11597421,0.00016438,2]
[340655601,1729607448653,-500.63408387,0.00016438,2]
[340655602,1729607448662,-501.00535964,0.00016438,2]
[340655603,1729607448672,-500.0,0.00016438,2]
[340655604,1729607448682,-500.0,0.00016438,2]
[340655605,1729607448691,-500.0,0.00016438,2]
[340655606,1729607448701,-501.04043037,0.00016438,2]
[340655607,1729607448710,-1057.03,0.00016438,2]
[340655608,1729607448720,-500.33856322,0.00016438,2]
[340655609,1729607448730,-501.76915678,0.00016438,2]
[340655610,1729607448739,-502.18283144,0.00016438,2]
[340655611,1729607448749,-509.62083695,0.00016438,2]
[340655612,1729607448759,-539.77,0.00016438,2]
[340655613,1729607448769,-501.43359514,0.00016438,2]
[340655614,1729607448779,-593.13056648,0.00016438,2]
[340655615,1729607448789,-500.0,0.00016438,2]
[340655616,1729607448798,-502.01182853,0.00016438,2]
[340655617,1729607448808,-500.0,0.00016438,2]
[340655618,1729607448818,-508.57849871,0.00016438,2]
[340655619,1729607448827,-505.62302566,0.00016438,2]
[340655620,1729607448837,-502.22204014,0.00016438,2]
[340655621,1729607448846,-860.17,0.00016438,2]
[340655622,1729607448857,-503.36715593,0.00016438,2]
[340655623,1729607448867,-500.0,0.00016438,2]
[340655624,1729607448877,-500.60891612,0.00016438,2]
[340655625,1729607448887,-500.0,0.00016438,2]
[340655626,1729607448896,-500.0,0.00016438,2]
[340655627,1729607448906,-500.0,0.00016438,2]
[340655628,1729607448916,-500.0,0.00016438,2]
[340655629,1729607448926,-500.0,0.00016438,2]
[340655630,1729607448937,-1202.76,0.00016438,2]
[340655631,1729607448946,-500.0,0.00016438,2]
[340655632,1729607448956,-502.52622927,0.00016438,2]
[340655633,1729607448965,-500.0,0.00016438,2]
[340655634,1729607448975,-864.69,0.00016438,2]
[340655635,1729607448985,-501.62840779,0.00016438,2]
[340655636,1729607448995,-500.0,0.00016438,2]
[340655637,1729607449005,-500.0,0.00016438,2]
[340655638,1729607449015,-502.92319714,0.00016438,2]
[340655639,1729607449027,-500.0,0.00016438,2]
[340655640,1729607449037,-500.0,0.00016438,2]
[340655641,1729607449047,-500.0,0.00016438,2]
[340655642,1729607449057,-500.15359405,0.00016438,2]
[340655643,1729607449067,-522.59,0.00016438,2]
[340655644,1729607449077,-502.67786676,0.00016438,2]
[340655645,1729607449087,-532.35,0.00016438,2]
[340655646,1729607449097,-502.42499629,0.00016438,2]
[340655647,1729607449107,-500.0,0.00016438,2]
[340655648,1729607449116,-502.13471049,0.00016438,2]
[340655649,1729607449126,-502.16321268,0.00016438,2]
[340655650,1729607449136,-500.82479076,0.00016438,2]
[340655651,1729607449146,-500.0,0.00016438,2]
[340655652,1729607449156,-538.21,0.00016438,2]
[340655653,1729607449166,-502.55125694,0.00016438,2]
[340655654,1729607449176,-504.31584631,0.00016438,2]
[340655655,1729607449186,-500.0,0.00016438,2]
[340655656,1729607449195,-500.0,0.00016438,2]
[340655657,1729607449205,-502.11605862,0.00016438,2]
[340655658,1729607449215,-501.40363839,0.00016438,2]
[340655659,1729607449224,-501.10434341,0.00016438,2]
[340655660,1729607449235,-500.0,0.00016438,2]
[340655661,1729607449245,-503.01247905,0.00016438,2]
[340655662,1729607449255,-500.0,0.00016438,2]
[340655663,1729607449265,-499.61266889,0.00016438,2]
[340655664,1729607449277,-500.35176414,0.00016438,2]
[340655665,1729607449288,-789.04,0.00016438,2]
[340655666,1729607449300,-504.78287327,0.00016438,2]
[340655667,1729607449309,-503.21122686,0.00016438,2]
[340655668,1729607449319,-500.0,0.00016438,2]
[340655669,1729607449329,-562.8,0.00016438,2]
[340655670,1729607449340,-500.0,0.00016438,2]
[340655671,1729607449349,-500.0,0.00016438,2]
[340655672,1729607449359,-516.23190923,0.00016438,2]
[340655673,1729607449369,-512.68,0.00016438,2]
[340655674,1729607449379,-263.20846213,0.00016438,2]
[340655675,1729607449409,-237.99186379,0.00016438,2]
[340655676,1729607449419,-556.03,0.00016438,2]
[340655677,1729607449429,-500.0,0.00016438,2]
[340655678,1729607449438,-503.167712,0.00016438,2]
[340655679,1729607449448,-503.38194455,0.00016438,2]
[340655680,1729607449457,-505.17078555,0.00016438,2]
[340655681,1729607449467,-521.03239473,0.00016438,2]
[340655682,1729607449476,-500.0,0.00016438,2]
[340655683,1729607449486,-85.13703057,0.00016438,2]
[340655687,1729607831345,171.70913858,0.0001,30]
[340655688,1729607884642,273.37336231,9.9e-05,2]
[340655689,1729607914967,273.37336231,9.9e-05,2]
[340655691,1729607930449,273.37336231,9.9e-05,2]
[340655692,1729607945557,273.37336231,9.9e-05,2]
[340655693,1729607960712,273.37336231,9.9e-05,2]
[340655694,1729607976108,273.37336231,9.9e-05,2]
[340655695,1729607992077,273.37336231,9.9e-05,2]
[340655696,1729608008113,273.37336231,9.9e-05,2]
[340655700,1729608137411,561.78856975,0.00022,60]
[340655783,1729608632748,-650.458221,0.0001196,2]
[340655784,1729608632761,-195.488156,0.00011976,2]
[340655786,1729608632770,-195.488156,0.00012009,2]
[340655788,1729608632780,-195.488156,0.00012042,2]
[340655790,1729608632789,-195.488156,0.00012075,2]
[340655792,1729608632798,-195.488156,0.00012107,2]
[340655794,1729608632808,-195.488156,0.0001214,2]
[340655796,1729608632816,-195.488156,0.00012173,2]
[340655798,1729608632826,-195.488156,0.00012206,2]
[340655800,1729608632834,-195.488156,0.00012239,2]
[340655802,1729608632843,-195.488156,0.00012272,2]
[340655804,1729608632853,-195.488156,0.00012305,2]
[340655806,1729608632863,-195.488156,0.00012337,2]
[340655807,1729608632871,-195.488156,0.0001237,2]
[340655809,1729608632881,-195.488156,0.00012403,2]
[340655811,1729608632890,-195.488156,0.00012436,2]
[340655814,1729608632899,-300.0,0.00012436,2]
[340655816,1729608632908,-300.0,0.00012436,2]
[340655818,1729608632918,-24900.0,0.00012437,2]
[340655820,1729608632927,-195.488156,0.00012469,2]
[340655822,1729608632936,-195.488156,0.00012502,2]
[340655824,1729608632946,-195.488156,0.00012534,2]
[340655826,1729608632956,-195.488156,0.00012567,2]
[340655828,1729608632968,-195.488156,0.000126,2]
[340655830,1729608632978,-463.14767777,0.000134,2]
[340655832,1729608632987,-7951.44137157,0.000135,2]
[340655834,1729608632997,-150.112233,0.000135,2]
[340655836,1729608633007,-150.112233,0.000135,2]
[340655838,1729608633017,-150.112233,0.000135,2]
[340655840,1729608633026,-769.60502252,0.000135,2]
[340655841,1729608633036,-66737.36108259,0.00013561,2]
[340655843,1729608633045,-26815.96248125,0.00013561,2]
[340655862,1729608639017,-252949.88194035,0.00013561,2]
[340655863,1729608639028,-142723.08849024,0.00013561,2]
[340655864,1729608639038,-305.51999321,0.00013573,2]
[340655865,1729608639049,-305.51999321,0.00013579,2]
[340655866,1729608639062,-305.51999321,0.00013586,2]
[340655867,1729608639072,-1930.85523292,0.00013588,2]
[340655868,1729608639082,-305.51999321,0.00013592,2]
[340655869,1729608639092,-305.51999321,0.00013598,2]
[340655870,1729608639103,-150.112233,0.000136,2]
[340655871,1729608639114,-150.112233,0.000136,2]
[340655872,1729608639126,-150.112233,0.000136,2]
[340655873,1729608639139,-150.112233,0.000136,2]
[340655874,1729608639149,-150.112233,0.000136,2]
[340655875,1729608639159,-150.112233,0.000136,2]
[340655876,1729608639169,-150.112233,0.000136,2]
[340655877,1729608639179,-420.0,0.00013646,2]
[340655878,1729608639190,-500.0,0.00013673,2]
[340655879,1729608639200,-500.0,0.00013673,2]
[340655880,1729608639210,-500.0,0.00013673,2]
[340655881,1729608639221,-500.0,0.00013673,2]
[340655882,1729608639231,-500.0,0.00013673,2]
[340655883,1729608639242,-500.0,0.00013673,2]
[340655884,1729608639252,-500.0,0.00013673,2]
[340655885,1729608639262,-500.0,0.00013673,2]
[340655886,1729608639271,-500.0,0.00013673,2]
[340655887,1729608639284,-500.0,0.00013673,2]
[340655888,1729608639295,-500.0,0.00013673,2]
[340655889,1729608639307,-500.0,0.00013673,2]
[340655890,1729608639320,-503.99187716,0.00013673,2]
[340655891,1729608639332,-500.0,0.00013673,2]
[340655892,1729608639342,-500.0,0.00013673,2]
[340655893,1729608639352,-560.7470573,0.00013673,2]
[340655894,1729608639362,-500.0,0.00013673,2]
[340655895,1729608639371,-500.0,0.00013673,2]
[340655896,1729608639380,-172.37670306,0.00013673,2]
[340655897,1729608639390,-500.0,0.00013673,2]
[340655898,1729608639399,-500.0,0.00013673,2]
[340655899,1729608639409,-500.0,0.00013673,2]
[340655900,1729608639418,-500.0,0.00013673,2]
[340655901,1729608639427,-500.0,0.00013673,2]
[340655902,1729608639436,-500.70211212,0.00013673,2]
[340655903,1729608639445,-500.0,0.00013673,2]
[340655904,1729608639455,-500.0,0.00013673,2]
[340655905,1729608639464,-327065.462188,0.00013678,2]
[340655906,1729608639475,-163532.731094,0.00013678,2]
[340655907,1729608639484,-420.0,0.0001368,2]
[340655908,1729608639494,-151.0,0.00013688,2]
[340655909,1729608639503,-151.0,0.00013688,2]
[340655910,1729608639512,-101912.020504,0.00013688,2]
[340655911,1729608639523,-163532.731094,0.00013688,2]
[340655912,1729608639531,-67941.3470025,0.00013689,2]
[340655913,1729608639541,-500.0,0.00013698,2]
[340655914,1729608639550,-500.0,0.00013698,2]
[340655915,1729608639559,-500.0,0.00013698,2]
[340655916,1729608639569,-500.0,0.00013698,2]
[340655917,1729608639579,-500.0,0.00013698,2]
[340655918,1729608639588,-500.0,0.00013698,2]
[340655919,1729608639598,-500.0,0.00013698,2]
[340655920,1729608639607,-500.0,0.00013698,2]
[340655921,1729608639618,-500.0,0.00013698,2]
[340655922,1729608639628,-633.34782844,0.00013698,2]
[340655923,1729608639640,-500.0,0.00013698,2]
[340655924,1729608639649,-376.10363325,0.00013698,2]
[340655925,1729608639659,-500.0,0.00013698,2]
[340655926,1729608639669,-500.0,0.00013698,2]
[340655927,1729608639678,-500.0,0.00013698,2]
[340655928,1729608639687,-500.0,0.00013698,2]
[340655929,1729608639697,-500.0,0.00013698,2]
[340655930,1729608639707,-500.0,0.00013698,2]
[340655931,1729608639717,-500.0,0.00013698,2]
[340655932,1729608639727,-500.0,0.00013698,2]
[340655933,1729608639736,-500.0,0.00013698,2]
[340655934,1729608639746,-318.5472162,0.00013698,2]
[340655935,1729608639759,-500.0,0.00013698,2]
[340655936,1729608639769,-500.0,0.00013698,2]
[340655937,1729608639779,-500.0,0.00013698,2]
[340655938,1729608639788,-500.0,0.00013698,2]
[340655939,1729608639798,-500.0,0.00013698,2]
[340655940,1729608639808,-500.0,0.00013698,2]
[340655941,1729608639818,-500.0,0.00013698,2]
[340655942,1729608639829,-500.0,0.00013698,2]
[340655943,1729608639840,-500.0,0.00013698,2]
[340655944,1729608639852,-500.0,0.00013698,2]
[340655945,1729608639861,-500.0,0.00013698,2]
[340655946,1729608639872,-500.0,0.00013698,2]
[340655947,1729608639881,-500.0,0.00013698,2]
[340655948,1729608639893,-500.0,0.00013698,2]
[340655949,1729608639902,-500.0,0.00013698,2]
[340655950,1729608639915,-500.0,0.00013698,2]
[340655951,1729608639925,-500.0,0.00013698,2]
[340655952,1729608639934,-500.0,0.00013698,2]
[340655953,1729608639945,-500.0,0.00013698,2]
[340655954,1729608639955,-172.68371591,0.00013698,2]
[340655955,1729608639966,-500.0,0.00013698,2]